[Event "12th Asrian Memorial 2019"]
[Site "Yerevan"]
[Date "2019.06.14"]
[Round "4.9"]
[White "Sargsyan, Tigran R."]
[Black "Mikaelyan, Arman"]
[Result "1/2-1/2"]
[ECO "E69"]
[WhiteElo "2367"]
[BlackElo "2453"]
[Annotator "ChessBase"]
[PlyCount "150"]
[EventDate "2019.06.11"]
[EventType "swiss"]
[EventCountry "ARM"]
[SourceTitle "playchess.com"]
[Source "ChessBase"]
[SourceQuality "1"]
[TimeControl "40/5400+30:1800+30"]

1. d4 {[%emt 0:00:00]} Nf6 {[%emt 0:00:00]} 2. Nf3 {[%emt 0:01:48]} g6 {[%emt 0:00:13]} 3. c4 {[%emt 0:01:49]} Bg7 {[%emt 0:00:06]} 4. g3 {[%emt 0:00:25]} O-O {[%emt 0:00:09]} 5. Bg2 {[%emt 0:00:05]} d6 {[%emt 0:00:15]} 6. O-O {[%emt 0:00:18]} Nbd7 {[%emt 0:00:12]} 7. Nc3 {[%emt 0:00:44]} e5 {[%emt 0:00:15]} 8. e4 {[%emt 0:00:40]} c6 {[%emt 0:00:10]} 9. h3 {[%emt 0:01:10]} Qa5 {[%emt 0:00:20]} 10. Rb1 {[%emt 0:04:38]} Qb4 {[%emt 0:07:31]} 11. Qb3 {[%emt 0:17:10]} a5 {[%emt 0:07:29]} 12. Rd1 {[%emt 0:20:42]} exd4 {[%emt 0:08:59]} 13. Nxd4 {[%emt 0:02:12]} Nc5 {[%emt 0:07:32]} 14. Qc2 {[%emt 0:00:44]} Qxc4 {[%emt 0:07:47]} 15. Bf1 {[%emt 0:13:40]} Qb4 {[%emt 0:01:18]} 16. a3 {[%emt 0:06:35]} Qb6 {[%emt 0:00:31]} 17. b4 {[%emt 0:02:04]} axb4 {[%emt 0:00:05]} 18. axb4 {[%emt 0:00:27]} Ncd7 {[%emt 0:02:25]} 19. Be3 {[%emt 0:02:33]} Qd8 {[%emt 0:02:46]} 20. b5 {[%emt 0:04:34]} c5 {[%emt 0:02:48]} 21. Nde2 {[%emt 0:03:23]} Qe7 {[%emt 0:03:19]} 22. b6 {[%emt 0:03:49]} Ne5 {[%emt 0:04:41]} 23. Nb5 {[%emt 0:02:16]} Nf3+ {[%emt 0:03:20]} 24. Kg2 {[%emt 0:00:42]} Bd7 {[%emt 0:11:36]} 25. Kxf3 {[%emt 0:03:59]} Ra2 {[%emt 0:00:44]} 26. Qd3 {[%emt 0:01:12]} d5 {[%emt 0:02:05]} 27. Kg2 {[%emt 0:01:27]} c4 {[%emt 0:01:08]} 28. Qc3 {[%emt 0:00:40]} d4 {[%emt 0:16:32]} 29. Nbxd4 {[%emt 0:00:36]} Qxe4+ {[%emt 0:01:25]} 30. f3 {[%emt 0:01:29]} Nd5 {[%emt 0:01:52]} 31. fxe4 {[%emt 0:00:05]} Nxc3 {[%emt 0:00:03]} 32. Rbc1 {[%emt 0:00:49]} Nxd1 33. Rxd1 c3 {[%emt 0:01:36]} 34. Rc1 {[%emt 0:00:23]} Rc8 {[%emt 0:00:19]} 35. Kf3 {[%emt 0:01:19]} c2 {[%emt 0:00:17]} 36. Kf2 {[%emt 0:00:52]} Bf8 {[%emt 0:00:17]} 37. Ke1 {[%emt 0:02:20]} Ba3 {[%emt 0:00:12]} 38. e5 {[%emt 0:00:43]} Bxc1 {[%emt 0:02:05]} 39. Nxc1 {[%emt 0:00:00]} Rb2 {[%emt 0:00:42]} 40. Nde2 {[%emt 0:00:00]} Bc6 {[%emt 0:00:00]} 41. Nc3 {[%emt 0:09:36]} Re8 {[%emt 0:02:58]} 42. Kd2 {[%emt 0:04:48]} Rxe5 {[%emt 0:01:47]} 43. Bd3 {[%emt 0:03:41]} Rxe3 {[%emt 0:11:11]} 44. Kxe3 {[%emt 0:00:16]} Kg7 {[%emt 0:00:19]} 45. Kd2 {[%emt 0:02:36]} f5 {[%emt 0:01:07]} 46. Bxc2 {[%emt 0:00:34]} Rxb6 {[%emt 0:00:08]} 47. Nd3 {[%emt 0:00:37]} Kf6 {[%emt 0:00:18]} 48. h4 {[%emt 0:01:27]} Ra6 {[%emt 0:01:08]} 49. Ke3 {[%emt 0:02:01]} Ra8 {[%emt 0:00:33]} 50. Nf4 {[%emt 0:02:42]} Re8+ {[%emt 0:01:12]} 51. Kf2 {[%emt 0:01:02]} Ke5 {[%emt 0:01:29]} 52. Ke3 {[%emt 0:00:18]} Kd6+ {[%emt 0:02:55]} 53. Kd4 {[%emt 0:00:11]} Rd8 {[%emt 0:04:50]} 54. Bd3 {[%emt 0:00:57]} Rf8 {[%emt 0:04:35]} 55. Bc4 {[%emt 0:01:48]} Re8 {[%emt 0:00:30]} 56. Bd3 {[%emt 0:00:22]} Re1 {[%emt 0:01:30]} 57. Nh3 {[%emt 0:00:32]} Ke7 {[%emt 0:00:50]} 58. Ne2 {[%emt 0:02:13]} Kf6 {[%emt 0:00:18]} 59. Nhf4 {[%emt 0:02:00]} Rd1 {[%emt 0:00:40]} 60. Nc3 {[%emt 0:00:17]} Rd2 {[%emt 0:00:17]} 61. Nfe2 {[%emt 0:00:43]} Rb2 {[%emt 0:00:45]} 62. Nf4 {[%emt 0:01:12]} Rh2 {[%emt 0:00:26]} 63. Bc4 {[%emt 0:00:56]} h6 {[%emt 0:01:08]} 64. Bd3 {[%emt 0:00:33]} g5 {[%emt 0:01:16]} 65. hxg5+ {[%emt 0:00:40]} Kxg5 {[%emt 0:00:54]} 66. Ke5 {[%emt 0:00:44]} Kg4 {[%emt 0:02:29]} 67. Nce2 {[%emt 0:00:02]} Kf3 {[%emt 0:01:04]} 68. Bxf5 {[%emt 0:01:56]} Rxe2+ {[%emt 0:01:05]} 69. Nxe2 {[%emt 0:00:01]} Kxe2 {[%emt 0:00:04]} 70. g4 {[%emt 0:00:39]} b5 {[%emt 0:01:42]} 71. Kf6 {[%emt 0:00:25]} Kf3 {[%emt 0:00:17]} 72. Kg6 {[%emt 0:00:33]} Kf4 {[%emt 0:00:11]} 73. Kxh6 {[%emt 0:00:38]} b4 {[%emt 0:01:10]} 74. Be6 {[%emt 0:00:11]} b3 {[%emt 0:01:46]} 75. Bxb3 {[%emt 0:00:05]} Kxg4 {[%emt 0:00:03]} 1/2-1/2

[Event "12th Asrian Memorial 2019"]
[Site "Yerevan"]
[Date "2019.06.14"]
[Round "4.10"]
[White "Harutyunian, Tigran K."]
[Black "Basencyan, Mark"]
[Result "1/2-1/2"]
[ECO "A48"]
[WhiteElo "2552"]
[BlackElo "2154"]
[Annotator "ChessBase"]
[PlyCount "113"]
[EventDate "2019.06.11"]
[EventType "swiss"]
[EventCountry "ARM"]
[SourceTitle "playchess.com"]
[Source "ChessBase"]
[SourceQuality "1"]
[TimeControl "40/5400+30:1800+30"]

1. d4 {[%emt 0:00:00]} Nf6 {[%emt 0:01:39]} 2. Nf3 {[%emt 0:00:00]} g6 {[%emt 0:00:22]} 3. Nbd2 {[%emt 0:00:11]} Bg7 {[%emt 0:00:43]} 4. e4 {[%emt 0:00:08]} d6 {[%emt 0:00:08]} 5. Bb5+ {[%emt 0:00:16]} c6 {[%emt 0:00:08]} 6. Ba4 {[%emt 0:01:28]} O-O {[%emt 0:01:20]} 7. O-O {[%emt 0:00:13]} Bg4 {[%emt 0:04:51]} 8. Re1 {[%emt 0:02:12]} d5 {[%emt 0:11:39]} 9. c3 {[%emt 0:06:14]} dxe4 {[%emt 0:17:01]} 10. Nxe4 {[%emt 0:00:21]} Nbd7 {[%emt 0:01:28]} 11. Nxf6+ {[%emt 0:05:06]} Nxf6 {[%emt 0:01:29]} 12. h3 {[%emt 0:00:07]} Bxf3 {[%emt 0:03:32]} 13. Qxf3 {[%emt 0:00:37]} e6 {[%emt 0:04:36]} 14. Bf4 {[%emt 0:13:24]} Nd5 {[%emt 0:01:40]} 15. Bg3 {[%emt 0:00:08]} Qf6 {[%emt 0:01:53]} 16. Qe2 {[%emt 0:03:55]} Rfe8 {[%emt 0:03:05]} 17. Rad1 {[%emt 0:01:44]} h5 {[%emt 0:04:59]} 18. Bb3 {[%emt 0:01:31]} h4 {[%emt 0:07:14]} 19. Bh2 {[%emt 0:00:59]} Qg5 {[%emt 0:01:57]} 20. Bc2 {[%emt 0:20:01]} Rad8 {[%emt 0:01:15]} 21. Qf3 {[%emt 0:00:43]} Re7 {[%emt 0:06:40]} 22. Re4 {[%emt 0:01:29]} Red7 {[%emt 0:02:06]} 23. Rde1 {[%emt 0:04:00]} Qd2 {[%emt 0:03:09]} 24. R4e2 {[%emt 0:03:37]} Qg5 {[%emt 0:00:06]} 25. Be5 {[%emt 0:03:23]} Bxe5 {[%emt 0:06:17]} 26. Rxe5 {[%emt 0:00:12]} Qf6 {[%emt 0:00:22]} 27. Qg4 {[%emt 0:01:33]} Ne7 {[%emt 0:03:51]} 28. R1e4 {[%emt 0:07:07]} Nf5 {[%emt 0:04:20]} 29. Rf4 {[%emt 0:00:12]} Rd5 {[%emt 0:01:17]} 30. Bxf5 {[%emt 0:02:53]} Rxe5 {[%emt 0:01:58]} 31. dxe5 {[%emt 0:00:37]} exf5 {[%emt 0:00:52]} 32. exf6 {[%emt 0:00:33]} fxg4 {[%emt 0:00:07]} 33. hxg4 {[%emt 0:00:40]} g5 {[%emt 0:03:36]} 34. Re4 {[%emt 0:17:22]} Rd2 {[%emt 0:00:04]} 35. b4 {[%emt 0:01:26]} Kh7 {[%emt 0:00:43]} 36. a4 {[%emt 0:01:00]} Kg6 {[%emt 0:00:12]} 37. Re7 {[%emt 0:00:07]} b5 {[%emt 0:01:13]} 38. Rxa7 {[%emt 0:00:27]} bxa4 {[%emt 0:00:10]} 39. Rxa4 {[%emt 0:00:57]} Rc2 {[%emt 0:00:07]} 40. Ra3 {[%emt 0:00:00]} Kxf6 {[%emt 0:00:00]} 41. Ra6 {[%emt 0:00:43]} Rxc3 {[%emt 0:03:24]} 42. b5 {[%emt 0:00:12]} Ke6 {[%emt 0:12:38]} 43. bxc6 {[%emt 0:00:27]} Kd6 {[%emt 0:00:27]} 44. f4 {[%emt 0:11:46]} gxf4 {[%emt 0:03:19]} 45. Kf2 {[%emt 0:00:11]} Rg3 {[%emt 0:02:51]} 46. Ra4 {[%emt 0:00:57]} Rxg4 {[%emt 0:01:24]} 47. Rc4 {[%emt 0:00:16]} Kc7 {[%emt 0:00:01]} 48. Rc5 {[%emt 0:02:15]} Rg3 {[%emt 0:03:31]} 49. Rh5 {[%emt 0:00:39]} Kxc6 {[%emt 0:01:21]} 50. Rxh4 {[%emt 0:00:06]} Kd6 {[%emt 0:00:18]} 51. Rxf4 {[%emt 0:00:33]} Rg7 {[%emt 0:00:03]} 52. Kf3 {[%emt 0:00:10]} Ke6 {[%emt 0:00:06]} 53. Ra4 {[%emt 0:00:28]} f6 {[%emt 0:00:39]} 54. Ra6+ {[%emt 0:00:29]} Kf5 {[%emt 0:00:36]} 55. g4+ {[%emt 0:00:06]} Kg5 {[%emt 0:00:11]} 56. Ra5+ {[%emt 0:00:14]} Kg6 {[%emt 0:00:08]} 57. Ke4 1/2-1/2

[Event "12th Asrian Memorial 2019"]
[Site "Yerevan"]
[Date "2019.06.14"]
[Round "4.11"]
[White "Shmavonyan, Areg"]
[Black "Babujian, Levon"]
[Result "0-1"]
[ECO "E06"]
[WhiteElo "2180"]
[BlackElo "2485"]
[Annotator "ChessBase"]
[PlyCount "120"]
[EventDate "2019.06.11"]
[EventType "swiss"]
[EventCountry "ARM"]
[SourceTitle "playchess.com"]
[Source "ChessBase"]
[SourceQuality "1"]
[TimeControl "40/5400+30:1800+30"]

1. d4 {[%emt 0:00:00]} Nf6 {[%emt 0:00:00]} 2. Nf3 {[%emt 0:00:00]} d5 {[%emt 0:00:00]} 3. c4 {[%emt 0:00:56]} e6 {[%emt 0:00:07]} 4. g3 {[%emt 0:01:55]} Be7 {[%emt 0:00:26]} 5. Bg2 {[%emt 0:00:11]} O-O {[%emt 0:00:05]} 6. O-O {[%emt 0:00:06]} dxc4 {[%emt 0:00:04]} 7. Qc2 {[%emt 0:00:04]} b5 {[%emt 0:00:34]} 8. a4 {[%emt 0:02:26]} b4 {[%emt 0:00:18]} 9. Nfd2 {[%emt 0:01:29]} c6 {[%emt 0:00:07]} 10. Nxc4 {[%emt 0:06:17]} Qxd4 {[%emt 0:00:05]} 11. Rd1 {[%emt 0:02:50]} Qc5 {[%emt 0:02:06]} 12. Be3 {[%emt 0:04:03]} Qh5 {[%emt 0:01:13]} 13. Nbd2 {[%emt 0:04:50]} Ng4 {[%emt 0:02:50]} 14. Nf3 {[%emt 0:02:46]} Nd7 {[%emt 0:02:04]} 15. Bd4 {[%emt 0:16:38]} Ba6 {[%emt 0:17:52]} 16. Bxg7 {[%emt 0:23:07]} Rfd8 {[%emt 0:01:08]} 17. Bd4 {[%emt 0:01:49]} c5 {[%emt 0:01:23]} 18. h3 {[%emt 0:03:11]} cxd4 {[%emt 0:00:23]} 19. hxg4 {[%emt 0:00:12]} Qc5 {[%emt 0:00:09]} 20. b3 {[%emt 0:03:12]} Nb6 {[%emt 0:01:16]} 21. Rac1 {[%emt 0:01:16]} Rac8 {[%emt 0:00:48]} 22. Nfd2 {[%emt 0:06:23]} Nxc4 {[%emt 0:01:34]} 23. bxc4 {[%emt 0:03:40]} Qg5 {[%emt 0:00:44]} 24. Bf3 {[%emt 0:01:33]} Qg6 {[%emt 0:00:18]} 25. Qd3 {[%emt 0:01:26]} Bg5 {[%emt 0:00:56]} 26. Rb1 {[%emt 0:02:40]} Bxd2 {[%emt 0:02:28]} 27. Qxd2 {[%emt 0:00:49]} e5 {[%emt 0:04:34]} 28. Rxb4 {[%emt 0:04:58]} Bxc4 {[%emt 0:01:38]} 29. Bb7 {[%emt 0:02:22]} Rb8 {[%emt 0:02:16]} 30. Rxc4 {[%emt 0:00:12]} Rxb7 {[%emt 0:00:04]} 31. Qa5 {[%emt 0:02:06]} Re8 {[%emt 0:00:28]} 32. Qd5 {[%emt 0:00:45]} Rb6 {[%emt 0:01:44]} 33. Rc7 {[%emt 0:00:17]} Rf6 {[%emt 0:00:16]} 34. Qd7 {[%emt 0:00:24]} Rf8 {[%emt 0:01:39]} 35. Rdc1 {[%emt 0:00:38]} Qe4 {[%emt 0:02:32]} 36. g5 {[%emt 0:01:45]} Rb6 {[%emt 0:00:04]} 37. Rc8 {[%emt 0:00:25]} Rxc8 {[%emt 0:01:07]} 38. Qxc8+ {[%emt 0:00:20]} Kg7 {[%emt 0:00:02]} 39. a5 {[%emt 0:00:44]} Rb1 {[%emt 0:08:38]} 40. Rxb1 {[%emt 0:00:00]} Qxb1+ {[%emt 0:00:00]} 41. Kh2 {[%emt 0:04:12]} Qe1 {[%emt 0:00:44]} 42. Qf5 {[%emt 0:05:30]} Qxa5 {[%emt 0:00:41]} 43. f4 {[%emt 0:11:32]} Qd5 {[%emt 0:01:37]} 44. Qf6+ {[%emt 0:01:19]} Kg8 {[%emt 0:00:07]} 45. fxe5 {[%emt 0:03:04]} a5 {[%emt 0:00:14]} 46. Qe7 {[%emt 0:00:27]} Kg7 {[%emt 0:03:26]} 47. Qf6+ {[%emt 0:01:39]} Kf8 {[%emt 0:00:06]} 48. e6 {[%emt 0:01:20]} Qxe6 {[%emt 0:00:21]} 49. Qd8+ {[%emt 0:00:59]} Qe8 {[%emt 0:00:26]} 50. Qd6+ {[%emt 0:00:20]} Kg8 {[%emt 0:00:31]} 51. Qxd4 {[%emt 0:00:05]} Qxe2+ {[%emt 0:00:12]} 52. Kg1 {[%emt 0:00:09]} Qe8 {[%emt 0:02:24]} 53. Kf2 {[%emt 0:02:48]} Qa8 {[%emt 0:00:47]} 54. Qa4 {[%emt 0:01:13]} Qd5 {[%emt 0:00:45]} 55. Qf4 {[%emt 0:00:43]} Qa2+ {[%emt 0:01:00]} 56. Kf1 {[%emt 0:01:10]} Qa1+ {[%emt 0:00:04]} 57. Kg2 {[%emt 0:00:29]} a4 {[%emt 0:00:09]} 58. Qb8+ {[%emt 0:00:28]} Kg7 {[%emt 0:00:04]} 59. Qd6 {[%emt 0:02:17]} a3 {[%emt 0:00:14]} 60. Kh3 {[%emt 0:00:51]} Qb2 {[%emt 0:00:24]} 0-1

[Event "12th Asrian Memorial 2019"]
[Site "Yerevan"]
[Date "2019.06.14"]
[Round "4.12"]
[White "Kotanjian, Tigran"]
[Black "Yeremyan, Alen"]
[Result "1-0"]
[ECO "E97"]
[WhiteElo "2462"]
[BlackElo "2128"]
[Annotator "ChessBase"]
[PlyCount "95"]
[EventDate "2019.06.11"]
[EventType "swiss"]
[EventCountry "ARM"]
[SourceTitle "playchess.com"]
[Source "ChessBase"]
[SourceQuality "1"]
[TimeControl "40/5400+30:1800+30"]

1. d4 {[%emt 0:00:00]} Nf6 {[%emt 0:00:00]} 2. c4 {[%emt 0:00:00]} g6 {[%emt 0:00:00]} 3. Nc3 {[%emt 0:00:00]} Bg7 {[%emt 0:00:00]} 4. e4 {[%emt 0:00:00]} d6 {[%emt 0:00:00]} 5. Nf3 {[%emt 0:00:00]} O-O {[%emt 0:00:00]} 6. Be2 {[%emt 0:00:01]} e5 {[%emt 0:00:18]} 7. O-O {[%emt 0:00:05]} Nc6 {[%emt 0:00:03]} 8. d5 {[%emt 0:00:05]} Ne7 {[%emt 0:00:05]} 9. b4 {[%emt 0:00:02]} a5 {[%emt 0:00:30]} 10. Ba3 {[%emt 0:00:05]} axb4 {[%emt 0:00:06]} 11. Bxb4 {[%emt 0:00:03]} b6 {[%emt 0:02:39]} 12. a4 {[%emt 0:00:09]} Re8 {[%emt 0:00:04]} 13. Qd3 {[%emt 0:02:22]} Nf5 {[%emt 0:04:38]} 14. a5 {[%emt 0:00:10]} bxa5 {[%emt 0:04:43]} 15. Bxa5 {[%emt 0:00:10]} Bd7 {[%emt 0:14:46]} 16. exf5 {[%emt 0:01:05]} e4 {[%emt 0:07:19]} 17. Qd2 {[%emt 0:00:24]} exf3 {[%emt 0:00:16]} 18. Bxf3 {[%emt 0:00:06]} Bxf5 {[%emt 0:08:56]} 19. Nb5 {[%emt 0:00:50]} Rc8 {[%emt 0:06:45]} 20. c5 {[%emt 0:03:55]} dxc5 {[%emt 0:12:06]} 21. Nxc7 {[%emt 0:01:37]} Re5 {[%emt 0:11:49]} 22. Ne6 {[%emt 0:00:28]} Rxd5 {[%emt 0:06:53]} 23. Bxd5 {[%emt 0:00:14]} Qxd5 {[%emt 0:00:29]} 24. Nxg7 {[%emt 0:00:09]} Kxg7 {[%emt 0:02:37]} 25. Qb2 {[%emt 0:00:23]} Rc6 {[%emt 0:02:42]} 26. Bc3 {[%emt 0:00:07]} g5 {[%emt 0:02:13]} 27. Rfd1 {[%emt 0:00:46]} Qe4 {[%emt 0:03:18]} 28. Re1 {[%emt 0:01:29]} Qf4 {[%emt 0:02:24]} 29. Ra8 {[%emt 0:01:36]} Bg6 {[%emt 0:01:57]} 30. Re3 {[%emt 0:04:22]} Rd6 {[%emt 0:02:46]} 31. Ra1 {[%emt 0:00:09]} Rd4 {[%emt 0:02:08]} 32. Rf3 {[%emt 0:00:19]} Qd6 {[%emt 0:01:20]} 33. Bxd4 {[%emt 0:00:21]} Qxd4 {[%emt 0:00:35]} 34. Qxd4 {[%emt 0:00:18]} cxd4 {[%emt 0:00:02]} 35. Ra4 {[%emt 0:00:16]} d3 {[%emt 0:00:42]} 36. Rd4 {[%emt 0:00:05]} h5 {[%emt 0:01:44]} 37. Re3 {[%emt 0:00:17]} Bf5 {[%emt 0:00:32]} 38. f3 {[%emt 0:00:10]} Kg6 {[%emt 0:00:44]} 39. Rd6 {[%emt 0:00:09]} Kg7 {[%emt 0:00:42]} 40. Re5 {[%emt 0:00:00]} Kg6 {[%emt 0:00:00]} 41. Kf2 {[%emt 0:01:30]} h4 {[%emt 0:04:10]} 42. Ke3 {[%emt 0:00:24]} Be6 {[%emt 0:00:53]} 43. Kxd3 {[%emt 0:00:25]} Nh5 {[%emt 0:01:07]} 44. Ke4 {[%emt 0:01:37]} Kf6 {[%emt 0:00:32]} 45. Rf5+ {[%emt 0:00:21]} Kg6 {[%emt 0:01:03]} 46. Ke5 {[%emt 0:00:14]} Ng7 {[%emt 0:00:29]} 47. Rf6+ {[%emt 0:00:10]} Kh7 {[%emt 0:00:39]} 48. g4 {[%emt 0:00:34]} 1-0

[Event "12th Asrian Memorial 2019"]
[Site "Yerevan"]
[Date "2019.06.14"]
[Round "4.13"]
[White "Gevorgyan, Albert"]
[Black "Shahinyan, David"]
[Result "0-1"]
[ECO "A04"]
[WhiteElo "2088"]
[BlackElo "2429"]
[Annotator "ChessBase"]
[PlyCount "68"]
[EventDate "2019.06.11"]
[EventType "swiss"]
[EventCountry "ARM"]
[SourceTitle "playchess.com"]
[Source "ChessBase"]
[SourceQuality "1"]
[TimeControl "40/5400+30:1800+30"]

1. Nf3 {[%emt 0:00:00]} e6 {[%emt 0:03:10]} 2. g3 {[%emt 0:03:19]} b6 {[%emt 0:00:37]} 3. Bg2 {[%emt 0:00:28]} Bb7 {[%emt 0:00:07]} 4. c4 {[%emt 0:00:22]} f5 {[%emt 0:00:22]} 5. b3 {[%emt 0:03:54]} Nf6 {[%emt 0:03:56]} 6. Bb2 {[%emt 0:01:01]} Be7 {[%emt 0:01:13]} 7. O-O {[%emt 0:00:51]} O-O {[%emt 0:00:05]} 8. d3 {[%emt 0:01:48]} Qe8 {[%emt 0:00:40]} 9. Nbd2 {[%emt 0:04:58]} Qh5 {[%emt 0:01:01]} 10. e3 {[%emt 0:17:40]} Qh6 {[%emt 0:03:49]} 11. Be5 {[%emt 0:15:11]} d6 {[%emt 0:11:04]} 12. Bf4 {[%emt 0:05:37]} Qh5 {[%emt 0:04:52]} 13. e4 {[%emt 0:05:50]} e5 {[%emt 0:16:07]} 14. Bg5 {[%emt 0:01:33]} f4 {[%emt 0:02:49]} 15. gxf4 {[%emt 0:03:42]} exf4 {[%emt 0:04:16]} 16. Bxf4 {[%emt 0:00:22]} Nxe4 {[%emt 0:03:01]} 17. Nxe4 {[%emt 0:00:10]} Rxf4 {[%emt 0:00:22]} 18. Ng3 {[%emt 0:00:49]} Qh6 {[%emt 0:01:03]} 19. Nh4 {[%emt 0:00:32]} Bxg2 {[%emt 0:02:29]} 20. Nxg2 {[%emt 0:00:09]} Rf8 {[%emt 0:03:11]} 21. Qg4 {[%emt 0:04:34]} Nc6 {[%emt 0:00:50]} 22. d4 {[%emt 0:03:25]} Bf6 {[%emt 0:00:44]} 23. Rad1 {[%emt 0:00:21]} Rae8 {[%emt 0:00:12]} 24. Ne3 {[%emt 0:06:12]} Rf7 {[%emt 0:11:13]} 25. Kg2 {[%emt 0:04:07]} g6 {[%emt 0:02:48]} 26. d5 {[%emt 0:07:13]} Ne5 {[%emt 0:01:03]} 27. Qh3 {[%emt 0:00:44]} Qf4 {[%emt 0:01:03]} 28. Kh1 {[%emt 0:01:07]} Bg5 {[%emt 0:01:21]} 29. Qg2 {[%emt 0:01:08]} Nf3 {[%emt 0:02:11]} 30. Ne2 {[%emt 0:03:29]} Qh4 {[%emt 0:05:51]} 31. Rd3 {[%emt 0:01:55]} Nxh2 {[%emt 0:01:09]} 32. Nf5 {[%emt 0:02:17]} Rxf5 {[%emt 0:00:16]} 33. Rh3 {[%emt 0:00:03]} Qg4 {[%emt 0:00:26]} 34. Ng3 {[%emt 0:00:11]} Nxf1 {[%emt 0:00:15]} 0-1

[Event "12th Asrian Memorial 2019"]
[Site "Yerevan"]
[Date "2019.06.15"]
[Round "5.4"]
[White "Vardanian, Haik G."]
[Black "Andriasian, Zaven"]
[Result "0-1"]
[ECO "A28"]
[WhiteElo "2357"]
[BlackElo "2600"]
[Annotator "RC"]
[PlyCount "68"]
[EventDate "2019.06.11"]
[EventType "swiss"]
[EventCountry "ARM"]
[SourceTitle "playchess.com"]
[Source "ChessBase"]
[SourceQuality "1"]
[TimeControl "40/5400+30:1800+30"]

1. c4 {[%emt 0:00:00]} e5 {[%emt 0:00:00]} 2. Nc3 {[%emt 0:00:10]} Nc6 {[%emt 0:00:00]} 3. Nf3 {[%emt 0:00:18]} Nf6 {[%emt 0:00:25]} 4. e3 {[%emt 0:00:49]} Bb4 {[%emt 0:01:01]} 5. Qc2 {[%emt 0:00:32]} O-O {[%emt 0:01:58]} 6. Bd3 {[%emt 0:00:41]} Bxc3 {[%emt 0:01:48]} 7. dxc3 {[%emt 0:00:20]} d6 {[%emt 0:01:17]} 8. e4 {[%emt 0:00:45]} h6 {[%emt 0:01:14]} 9. h3 {[%emt 0:01:13]} Be6 {[%emt 0:00:35]} 10. g4 {[%emt 0:01:20]} Nd7 {[%emt 0:02:24]} 11. Be3 {[%emt 0:01:58]} a6 {[%emt 0:03:29]} 12. Nd2 {[%emt 0:01:09]} Ne7 {[%emt 0:02:55]} 13. Nf1 {[%emt 0:04:31]} Ng6 {[%emt 0:01:19]} 14. Ng3 {[%emt 0:05:38]} Nf4 {[%emt 0:01:58]} 15. Bf1 {[%emt 0:01:19]} b5 {[%emt 0:06:28]} 16. cxb5 {[%emt 0:03:46]} axb5 {[%emt 0:00:18]} 17. a3 {[%emt 0:02:11]} Nc5 {[%emt 0:04:28]} 18. b4 {[%emt 0:08:04]} Nb3 {[%emt 0:01:37]} 19. Ra2 {[%emt 0:06:31]} c5 {[%emt 0:00:15]} 20. Bxb5 {[%emt 0:07:15]} cxb4 {[%emt 0:03:10]} 21. c4 {[%emt 0:00:55]} Nd4 {[%emt 0:06:36]} 22. Bxd4 {[%emt 0:01:43]} exd4 {[%emt 0:01:38]} 23. axb4 {[%emt 0:02:34]} Qf6 {[%emt 0:07:14]} 24. Ra5 {[%emt 0:04:59]} d3 {[%emt 0:12:48]} 25. Qc1 {[%emt 0:01:51]} Ng2+ {[%emt 0:03:16]} 26. Kf1 {[%emt 0:01:04]} Qf3 {[%emt 0:01:03]} 27. Rh2 {[%emt 0:06:05]} Nf4 {[%emt 0:03:36]} 28. Qd2 {[%emt 0:04:22]} Rfb8 {[%emt 0:01:43]} 29. Qe3 {[%emt 0:10:57]} Qd1+ {[%emt 0:00:44]} 30. Qe1 {[%emt 0:00:04]} Qc2 {[%emt 0:00:19]} 31. Ba4 {[%emt 0:02:49]} Qxc4 {[%emt 0:00:15]} 32. Qd2 {[%emt 0:00:34]} Rxa5 {[%emt 0:00:10]} 33. bxa5 {[%emt 0:00:15]} Rb1+ {[%emt 0:01:59]} 34. Bd1 {[%emt 0:00:08]} Qc2 {[%emt 0:03:33]} 0-1

[Event "12th Asrian Memorial 2019"]
[Site "Yerevan"]
[Date "2019.06.15"]
[Round "5.5"]
[White "Kulaots, Kaido"]
[Black "Gharibyan, Mamikon"]
[Result "0-1"]
[ECO "C78"]
[WhiteElo "2574"]
[BlackElo "2320"]
[Annotator "ChessBase"]
[PlyCount "120"]
[EventDate "2019.06.11"]
[EventType "swiss"]
[EventCountry "ARM"]
[SourceTitle "playchess.com"]
[Source "ChessBase"]
[SourceQuality "1"]
[TimeControl "40/5400+30:1800+30"]

1. e4 {[%emt 0:00:00]} e5 {[%emt 0:00:05]} 2. Nf3 {[%emt 0:00:00]} Nc6 {[%emt 0:00:31]} 3. Bb5 {[%emt 0:00:06]} a6 {[%emt 0:01:08]} 4. Ba4 {[%emt 0:00:14]} Nf6 {[%emt 0:01:57]} 5. O-O {[%emt 0:00:55]} Bc5 {[%emt 0:06:18]} 6. c3 {[%emt 0:01:12]} b5 {[%emt 0:00:10]} 7. Bb3 {[%emt 0:02:58]} d6 {[%emt 0:00:28]} 8. a4 {[%emt 0:01:45]} Bb7 {[%emt 0:10:08]} 9. d3 {[%emt 0:03:23]} h6 {[%emt 0:07:58]} 10. Nh4 {[%emt 0:06:29]} Ne7 {[%emt 0:06:13]} 11. Qf3 {[%emt 0:24:15]} Qd7 {[%emt 0:12:27]} 12. Be3 {[%emt 0:08:41]} Qg4 {[%emt 0:18:01]} 13. Qxg4 {[%emt 0:02:50]} Nxg4 {[%emt 0:00:06]} 14. Bxc5 {[%emt 0:00:08]} dxc5 {[%emt 0:00:04]} 15. Nf3 {[%emt 0:01:14]} Ng6 {[%emt 0:01:24]} 16. Nbd2 {[%emt 0:03:22]} Ke7 {[%emt 0:02:51]} 17. Bc2 {[%emt 0:00:27]} Nf6 {[%emt 0:06:03]} 18. Nb3 {[%emt 0:03:01]} Nd7 {[%emt 0:00:55]} 19. Na5 {[%emt 0:02:33]} Rab8 {[%emt 0:00:43]} 20. axb5 {[%emt 0:00:51]} axb5 {[%emt 0:00:04]} 21. Nxb7 {[%emt 0:00:08]} Rxb7 {[%emt 0:00:03]} 22. Nd2 {[%emt 0:03:35]} Nf4 {[%emt 0:07:34]} 23. Rfe1 {[%emt 0:05:05]} Rhb8 {[%emt 0:08:06]} 24. g3 {[%emt 0:00:35]} Ne6 {[%emt 0:00:13]} 25. Ra5 {[%emt 0:03:09]} c4 {[%emt 0:01:27]} 26. dxc4 {[%emt 0:06:06]} b4 {[%emt 0:00:03]} 27. cxb4 {[%emt 0:00:03]} Rxb4 {[%emt 0:00:28]} 28. b3 {[%emt 0:00:04]} f6 {[%emt 0:03:05]} 29. Rea1 {[%emt 0:06:15]} Ndc5 {[%emt 0:01:25]} 30. R1a3 {[%emt 0:04:22]} Rd8 {[%emt 0:01:23]} 31. Nf1 {[%emt 0:00:20]} Rd7 {[%emt 0:02:52]} 32. Ne3 {[%emt 0:01:40]} c6 {[%emt 0:00:03]} 33. h4 {[%emt 0:01:51]} h5 {[%emt 0:00:44]} 34. Kf1 {[%emt 0:05:08]} g6 {[%emt 0:00:26]} 35. Ke1 {[%emt 0:00:54]} Kd6 {[%emt 0:00:48]} 36. Ra8 {[%emt 0:01:09]} Ke7 {[%emt 0:00:38]} 37. R8a5 {[%emt 0:01:33]} Kd6 {[%emt 0:00:03]} 38. Kd2 {[%emt 0:00:47]} Nd4 {[%emt 0:00:17]} 39. Kc3 {[%emt 0:01:09]} Rdb7 {[%emt 0:00:07]} 40. Ra7 {[%emt 0:00:00]} Nxc2 {[%emt 0:00:00]} 41. Kxc2 {[%emt 0:07:22]} Rxb3 {[%emt 0:04:46]} 42. Rxb7 {[%emt 0:11:12]} Rxa3 {[%emt 0:00:27]} 43. Rg7 {[%emt 0:00:19]} Ra2+ {[%emt 0:01:53]} 44. Kd1 {[%emt 0:00:44]} Rxf2 {[%emt 0:01:56]} 45. Ke1 {[%emt 0:02:06]} Nxe4 {[%emt 0:00:53]} 46. Rxg6 {[%emt 0:00:07]} Ke6 {[%emt 0:02:14]} 47. g4 {[%emt 0:01:00]} Rf3 {[%emt 0:07:06]} 48. Ke2 {[%emt 0:04:32]} Rh3 {[%emt 0:00:37]} 49. gxh5 {[%emt 0:01:13]} Ng3+ {[%emt 0:00:45]} 50. Kd2 {[%emt 0:01:20]} Nxh5 {[%emt 0:00:28]} 51. Rg4 {[%emt 0:00:05]} Nf4 {[%emt 0:00:29]} 52. Rg7 {[%emt 0:00:38]} Rh2+ {[%emt 0:07:22]} 53. Kd1 {[%emt 0:00:53]} Rxh4 {[%emt 0:03:10]} 54. Rc7 {[%emt 0:00:07]} Kd6 {[%emt 0:00:25]} 55. Rf7 {[%emt 0:00:17]} Rh1+ {[%emt 0:00:22]} 56. Kd2 {[%emt 0:00:08]} Nh5 {[%emt 0:00:38]} 57. Rh7 {[%emt 0:01:25]} Ng3 {[%emt 0:02:35]} 58. Rf7 {[%emt 0:01:06]} Rh2+ {[%emt 0:01:56]} 59. Kd3 {[%emt 0:00:20]} Rf2 {[%emt 0:00:12]} 60. Rg7 {[%emt 0:00:28]} Rf3 {[%emt 0:00:30] Kd4} 0-1